fUSD/lending_fUSD_20250930
["ID","MTS","AMOUNT","RATE_DAILY","PERIOD"]
[388522729,1759230677497,-1350.525279,0.00019178,2]
[388522730,1759230677507,-194.062008,0.00019178,2]
[388522731,1759230677517,-500.0,0.00019178,2]
[388522732,1759230677527,-194.062008,0.00019178,2]
[388522733,1759230677536,-594.612937,0.00019178,2]
[388522734,1759230677545,-194.062008,0.00019178,2]
[388522735,1759230677554,-7972.41408979,0.0001938,2]
[388522736,1759230677621,-6033.06282135,0.0001938,2]
[388522738,1759230678683,-152.0,0.0001726,2]
[388522739,1759230678693,-300.68,0.00017708,2]
[388522740,1759230678716,-326.658037,0.00017708,2]
[388522741,1759230678726,-500.0,0.00017708,2]
[388522742,1759230678736,-1180.0,0.00018312,2]
[388522743,1759230678745,-594.612937,0.00019178,2]
[388522744,1759230678755,-194.062008,0.00019178,2]
[388522745,1759230678764,-725.80566319,0.00019178,2]
[388522746,1759230678798,-2051.04457681,0.00019178,2]
[388522747,1759230678808,-594.612937,0.00019178,2]
[388522748,1759230678820,-500.0,0.00019178,2]
[388522749,1759230678830,-194.062008,0.00019178,2]
[388522750,1759230678840,-606.99,0.00019178,2]
[388522751,1759230678850,-2776.85024,0.00019178,2]
[388522752,1759230678861,-594.612937,0.00019178,2]
[388522753,1759230678878,-194.062008,0.00019178,2]
[388522754,1759230678888,-2776.85024,0.00019178,2]
[388522755,1759230678898,-594.612937,0.00019178,2]
[388522756,1759230678912,-194.062008,0.00019178,2]
[388522757,1759230678922,-2776.85024,0.00019178,2]
[388522758,1759230678931,-594.612937,0.00019178,2]
[388522759,1759230678947,-194.062008,0.00019178,2]
[388522760,1759230678959,-500.0,0.00019178,2]
[388522761,1759230678969,-2776.85024,0.00019178,2]
[388522762,1759230678980,-594.612937,0.00019178,2]
[388522763,1759230678991,-4091.477868,0.00019178,2]
[388522764,1759230679008,-194.062008,0.00019178,2]
[388522765,1759230679020,-2776.85024,0.00019178,2]
[388522766,1759230679031,-594.612937,0.00019178,2]
[388522767,1759230679044,-194.062008,0.00019178,2]
[388522768,1759230679054,-2776.85024,0.00019178,2]
[388522769,1759230679065,-594.612937,0.00019178,2]
[388522770,1759230679076,-194.062008,0.00019178,2]
[388522771,1759230679086,-183.933891,0.00019178,2]
[388522772,1759230679097,-8438.861338,0.00019178,2]
[388522773,1759230679108,-2776.85024,0.00019178,2]
[388522774,1759230679119,-81.78701715,0.00019178,2]
[388522775,1759230679298,-112.27499085,0.00019178,2]
[388522776,1759230679309,-183.933891,0.00019178,2]
[388522777,1759230679320,-594.612937,0.00019178,2]
[388522778,1759230679331,-2776.85024,0.00019178,2]
[388522779,1759230679341,-194.062008,0.00019178,2]
[388522780,1759230679352,-1173.95,0.00019178,2]
[388522781,1759230679363,-183.933891,0.00019178,2]
[388522782,1759230679374,-3453.99,0.00019178,2]
[388522783,1759230679385,-594.612937,0.00019178,2]
[388522784,1759230679398,-2776.85024,0.00019178,2]
[388522785,1759230679409,-194.062008,0.00019178,2]
[388522786,1759230679420,-183.933891,0.00019178,2]
[388522787,1759230679437,-594.612937,0.00019178,2]
[388522788,1759230679451,-461412.95950445,0.0001938,2]
[388522789,1759230679462,-54695.96569688,0.0001938,2]
[388522790,1759230681118,-415.67441247,0.00019178,2]
[388522791,1759230681275,-2361.17582753,0.00019178,2]
[388522792,1759230681286,-194.062008,0.00019178,2]
[388522793,1759230681298,-183.933891,0.00019178,2]
[388522794,1759230681308,-594.612937,0.00019178,2]
[388522795,1759230681320,-2776.85024,0.00019178,2]
[388522796,1759230681330,-194.062008,0.00019178,2]
[388522797,1759230681340,-500.0,0.00019178,2]
[388522798,1759230681350,-500.0,0.00019178,2]
[388522799,1759230681361,-183.933891,0.00019178,2]
[388522800,1759230681372,-317.564244,0.00019178,2]
[388522801,1759230681382,-594.612937,0.00019178,2]
[388522802,1759230681399,-2776.85024,0.00019178,2]
[388522803,1759230681411,-194.062008,0.00019178,2]
[388522804,1759230681423,-692.98,0.00019178,2]
[388522805,1759230681436,-183.933891,0.00019178,2]
[388522806,1759230681448,-594.612937,0.00019178,2]
[388522807,1759230681460,-317.564244,0.00019178,2]
[388522808,1759230681472,-194.062008,0.00019178,2]
[388522809,1759230681483,-500.0,0.00019178,2]
[388522810,1759230681495,-183.933891,0.00019178,2]
[388522811,1759230681506,-2776.85024,0.00019178,2]
[388522812,1759230681517,-594.612937,0.00019178,2]
[388522813,1759230681530,-317.564244,0.00019178,2]
[388522814,1759230681541,-194.062018,0.00019178,2]
[388522815,1759230681552,-183.933891,0.00019178,2]
[388522816,1759230681563,-2776.85024,0.00019178,2]
[388522817,1759230681575,-594.612937,0.00019178,2]
[388522818,1759230681588,-317.564244,0.00019178,2]
[388522819,1759230681600,-183.933891,0.00019178,2]
[388522820,1759230681613,-2578.60398478,0.00019178,2]
[388522821,1759230681630,-198.24625522,0.00019178,2]
[388522822,1759230681642,-594.612937,0.00019178,2]
[388522823,1759230681655,-183.933887,0.00019178,2]
[388522824,1759230681668,-2776.85024,0.00019178,2]
[388522825,1759230681681,-317.564244,0.00019178,2]
[388522826,1759230681694,-1238.11,0.00019178,2]
[388522827,1759230681707,-594.612937,0.00019178,2]
[388522828,1759230681719,-317.564244,0.00019178,2]
[388522829,1759230681731,-594.612935,0.00019178,2]
[388522830,1759230681744,-500.0,0.00019178,2]
[388522831,1759230681757,-2776.85024,0.00019178,2]
[388522832,1759230681769,-317.564244,0.00019178,2]
[388522833,1759230681782,-13737.69011488,0.0001938,2]
[388522834,1759230681795,-1180.83994598,0.0001938,2]
[388522835,1759230681807,-151.0,0.0001938,2]
[388522836,1759230681820,-151.0,0.0001938,2]
[388522837,1759230681840,-151.0,0.0001938,2]
[388522838,1759230681852,-1389.41373627,0.00019383,2]
[388522839,1759230681867,-168.0,0.00019383,2]
[388522840,1759230681880,-5123.35803965,0.00019384,2]
[388522841,1759230681933,-316.54296035,0.00019384,2]
[388522842,1759230681949,-9792.2767782,0.00019385,2]
[388522843,1759230681962,-638.52588598,0.000194,2]
[388522845,1759230682037,-1560.51786744,0.00019178,2]
[388522854,1759230696846,-250.0,0.00017484,2]
[388522859,1759230704119,-668.63,0.00017484,2]
[388522861,1759230705518,-1331.37,0.00017484,2]
[388522862,1759230705529,-19.155279,0.00017484,2]
[388522863,1759230705728,-480.844721,0.00017484,2]
[388522877,1759230727172,-300.0,0.00017707,2]
[388522878,1759230727206,-250.525279,0.00017708,2]
[388522879,1759230727244,-249.474721,0.00017708,2]
[388522882,1759230734278,-194.062008,0.00017708,2]
[388522891,1759230741141,-194.062008,0.00017708,2]
[388522892,1759230741167,-111.875984,0.00017708,2]
[388522894,1759230748100,-194.062008,0.00017708,2]
[388523034,1759231510685,205.30500771,0.000154,2]
[388523061,1759231734346,-346.925546,0.00017155,2]
[388523062,1759231734378,-300.0,0.00017241,2]
[388523063,1759231734409,-471.0,0.00017284,2]
[388523064,1759231734440,-300.0,0.00017284,2]
[388523065,1759231734470,-150.0,0.00017285,2]
[388523066,1759231734497,-174.71633584,0.00017285,2]
[388523067,1759231734527,-150.0,0.00017285,2]
[388523068,1759231734557,-194.11841708,0.00017285,2]
[388523069,1759231734590,-150.0,0.00017285,2]
[388523070,1759231734620,-150.0,0.00017285,2]
[388523071,1759231734651,-150.0,0.00017285,2]
[388523072,1759231734678,-180.31401092,0.00017285,2]
[388523073,1759231734706,-150.0,0.00017285,2]
[388523074,1759231734733,-186.02090867,0.00017285,2]
[388523075,1759231734762,-285.72078566,0.00017285,2]
[388523076,1759231734789,-150.0,0.00017285,2]
[388523077,1759231734818,-150.0,0.00017285,2]
[388523078,1759231734846,-150.0,0.00017285,2]
[388523079,1759231734875,-150.0,0.00017285,2]
[388523080,1759231735277,-94.78208145,0.00017354,2]
[388523084,1759231803369,4967.91805214,0.00015971,2]
[388523085,1759231824244,-639.63931113,0.00016783,2]
[388523086,1759231827285,-250.525279,0.00016783,2]
[388523087,1759231827603,-159.07450352,0.00016783,2]
[388523088,1759231830242,-664.58090635,0.00016783,2]
[388523148,1759231832792,-175.8654414,0.00017185,2]
[388523150,1759231832802,-205.21791855,0.00017354,2]
[388523152,1759231832811,-405.34765533,0.00017354,2]
[388523154,1759231832821,-12032.12391235,0.00017361,2]
[388523156,1759231832830,-1880.63446275,0.00017365,2]
[388523158,1759231832842,-334.78694722,0.00017365,2]
[388523161,1759231832854,-3922.08281175,0.00017365,2]
[388523163,1759231832866,-370.0,0.00017365,2]
[388523168,1759231833494,-6540.01238552,0.00017365,2]
[388523169,1759231833506,-12032.12391235,0.00017365,2]
[388523170,1759231833516,-161.7365393,0.0001737,2]
[388523171,1759231833528,-2605.90238579,0.00017374,2]
[388523172,1759231833537,-5204.98073836,0.00017375,2]
[388523173,1759231833550,-3252.76580481,0.00017375,2]
[388523174,1759231833560,-2605.90238579,0.00017378,2]
[388523175,1759231833570,-2276.85360516,0.00017381,2]
[388523176,1759231833580,-3008.03097813,0.00017386,2]
[388523177,1759231833591,-1644.86594969,0.00017386,2]
[388523178,1759231833600,-13047.51660724,0.00017388,2]
[388523179,1759231833612,-161.7365393,0.00017392,2]
[388523180,1759231833621,-15536.57374354,0.00017396,2]
[388523181,1759231833711,-36653.49268522,0.00017396,2]
[388523182,1759231833720,-250.0,0.000174,2]
[388523183,1759231833729,-2000.0,0.000174,2]
[388523184,1759231833739,-52190.06642876,0.000174,2]
[388523185,1759231833748,-2703.28566157,0.00017401,2]
[388523186,1759231833757,-161.7365393,0.00017402,2]
[388523187,1759231833768,-2605.90238579,0.00017406,2]
[388523188,1759231833778,-1644.86594969,0.00017407,2]
[388523189,1759231833787,-12032.12391235,0.00017408,2]
[388523190,1759231833797,-2703.28566157,0.0001741,2]
[388523191,1759231833807,-1644.86594969,0.0001741,2]
[388523192,1759231833817,-52190.06642876,0.00017413,2]
[388523193,1759231833826,-2276.85360516,0.00017413,2]
[388523194,1759231833835,-161.7365393,0.00017414,2]
[388523195,1759231833844,-3008.03097813,0.00017415,2]
[388523196,1759231833854,-2703.28566157,0.00017418,2]
[388523197,1759231833864,-3008.03097813,0.00017426,2]
[388523198,1759231833873,-2276.85360516,0.00017426,2]
[388523199,1759231833882,-1644.86594969,0.00017431,2]
[388523200,1759231833892,-8457.74654317,0.00017434,2]
[388523201,1759231833902,-8457.74654317,0.00017435,2]
[388523202,1759231833911,-13047.51660724,0.00017436,2]
[388523203,1759231833921,-2605.90238579,0.00017437,2]
[388523204,1759231833930,-52190.06642876,0.00017439,2]
[388523205,1759231833939,-12032.12391235,0.00017439,2]
[388523206,1759231833948,-3008.03097813,0.00017441,2]
[388523207,1759231833957,-2703.28566157,0.00017444,2]
[388523208,1759231833967,-161.7365393,0.00017444,2]
[388523209,1759231833977,-150.0,0.00017445,2]
[388523210,1759231833986,-2605.90238579,0.00017445,2]
[388523211,1759231833996,-2276.85360516,0.00017445,2]
[388523212,1759231834005,-13047.51660724,0.00017446,2]
[388523213,1759231834015,-2276.85360516,0.00017453,2]
[388523214,1759231834024,-52190.06642876,0.00017454,2]
[388523215,1759231834034,-13047.51660724,0.00017456,2]
[388523216,1759231834043,-13047.51660724,0.00017459,2]
[388523217,1759231834053,-2703.28566157,0.00017462,2]
[388523218,1759231834062,-13047.51660724,0.00017462,2]
[388523219,1759231834071,-8457.74654317,0.00017463,2]
[388523220,1759231834080,-52190.06642876,0.00017464,2]
[388523221,1759231834091,-12032.12391235,0.00017466,2]
[388523222,1759231834100,-8457.74654317,0.0001747,2]
[388523223,1759231834110,-161.7365393,0.00017472,2]
[388523224,1759231834119,-2276.85360516,0.00017472,2]
[388523225,1759231834128,-2605.90238579,0.00017472,2]
[388523226,1759231834137,-1644.86594969,0.00017474,2]
[388523227,1759231834147,-3008.03097813,0.00017478,2]
[388523228,1759231834157,-1644.86594969,0.00017479,2]
[388523229,1759231834167,-8457.74654317,0.0001748,2]
[388523230,1759231834177,-161.7365393,0.00017481,2]
[388523231,1759231834187,-1644.86594969,0.00017481,2]
[388523232,1759231834197,-2276.85360516,0.00017483,2]
[388523233,1759231834208,-2605.90238579,0.00017483,2]
[388523234,1759231834218,-3008.03097813,0.00017483,2]
[388523235,1759231834227,-3008.03097813,0.00017485,2]
[388523236,1759231834237,-8457.74654317,0.00017486,2]
[388523237,1759231834247,-935.89699573,0.00017487,2]
[388523238,1759231834257,-2703.28566157,0.00017491,2]
[388523239,1759231834267,-52190.06642876,0.00017494,2]
[388523240,1759231834276,-12032.12391235,0.00017495,2]
[388523241,1759231834286,-12032.12391235,0.00017497,2]
[388523242,1759231834296,-2703.28566157,0.00017497,2]
[388523243,1759231834306,-1200.0,0.00017515,2]
[388523244,1759231834315,-1684.64,0.00017516,2]
[388523245,1759231834325,-150.0,0.00017559,2]
[388523246,1759231834339,-300.0,0.00017561,2]
[388523247,1759231834348,-276.0,0.00017561,2]
[388523248,1759231834357,-550.0,0.00017561,2]
[388523249,1759231834367,-249.08678238,0.00017562,2]
[388523250,1759231834377,-279.76950918,0.00017562,2]
[388523251,1759231834387,-500.0,0.00017562,2]
[388523252,1759231834397,-527.81982693,0.00017562,2]
[388523253,1759231834409,-303276.1715017,0.00017563,2]
[388523254,1759231834438,-335.26580545,0.00017563,2]
[388523255,1759231834464,-797.01073431,0.00017563,2]
[388523256,1759231834476,-11472.59195854,0.00017563,2]
[388523257,1759231834487,-212.58,0.00017589,2]
[388523258,1759231834496,-4315.27,0.00017603,2]
[388523259,1759231834506,-150.0,0.00017605,2]
[388523260,1759231834516,-176.22,0.00017625,2]
[388523261,1759231834526,-200.0,0.00017626,2]
[388523262,1759231834535,-150.0,0.00017626,7]
[388523263,1759231834545,-250.0,0.00017645,2]
[388523264,1759231834555,-150.0,0.00017669,2]
[388523265,1759231834564,-150.0,0.00017669,2]
[388523266,1759231834574,-150.0,0.00017669,2]
[388523267,1759231834583,-232.36,0.000177,2]
[388523268,1759231834593,-2000.0,0.00017708,2]
[388523269,1759231834603,-2000.0,0.00017708,2]
[388523270,1759231834612,-2000.0,0.00017708,2]
[388523271,1759231834621,-2000.0,0.00017708,2]
[388523272,1759231834631,-686.591,0.00017708,2]
[388523273,1759231834640,-150.0,0.00017765,2]
[388523274,1759231834651,-195.0,0.00017793,2]
[388523275,1759231834660,-150.0,0.00017834,2]
[388523276,1759231834669,-195.0,0.00017849,2]
[388523277,1759231834680,-274.3511571,0.00017886,2]
[388523278,1759231834690,-161.048291,0.00017886,2]
[388523279,1759231834699,-150.0,0.00017925,2]
[388523280,1759231834708,-150.0,0.00017925,2]
[388523281,1759231834718,-150.0,0.00018053,2]
[388523282,1759231834727,-150.0,0.00018053,2]
[388523283,1759231834737,-150.0,0.00018053,2]
[388523284,1759231834746,-771.01,0.00018079,2]
[388523285,1759231834755,-150.0,0.00018085,2]
[388523286,1759231834764,-150.0,0.00018108,2]
[388523287,1759231834774,-1228.28,0.00018145,2]
[388523288,1759231834784,-150.0,0.00018153,2]
[388523289,1759231834794,-174.4,0.00018166,2]
[388523290,1759231834804,-165.33,0.00018177,2]
[388523291,1759231834814,-336.76,0.0001818,2]
[388523292,1759231834824,-150.0,0.00018245,2]
[388523293,1759231834833,-150.0,0.00018245,2]
[388523294,1759231834843,-150.0,0.00018245,2]
[388523295,1759231834853,-150.0,0.00018245,2]
[388523296,1759231834863,-474.52590314,0.00018314,2]
[388523297,1759231834873,-150.0,0.00018382,2]
[388523298,1759231834883,-150.0,0.00018405,2]
[388523299,1759231834893,-150.0,0.00018437,2]
[388523300,1759231834902,-150.0,0.00018437,2]
[388523301,1759231834911,-150.0,0.00018437,2]
[388523302,1759231834921,-150.0,0.00018565,2]
[388523303,1759231834931,-150.0,0.00018565,2]
[388523304,1759231834941,-260.0,0.0001865,2]
[388523305,1759231834951,-150.0,0.00018657,2]
[388523306,1759231834960,-150.0,0.00018657,2]
[388523307,1759231834970,-3979.490985,0.000187,6]
[388523308,1759231834980,-170.854143,0.000187,6]
[388523309,1759231834990,-189.626966,0.000187,6]
[388523310,1759231835000,-161.13979,0.000187,6]
[388523311,1759231835010,-1841.16504,0.000187,6]
[388523312,1759231835020,-3797.487602,0.000187,6]
[388523313,1759231835030,-1391.74,0.000187,7]
[388523314,1759231835040,-150.0,0.00018725,2]
[388523315,1759231835050,-150.0,0.000188,2]
[388523316,1759231835060,-150.0,0.00018821,2]
[388523317,1759231835070,-150.0,0.00018821,2]
[388523318,1759231835081,-150.0,0.00018821,2]
[388523319,1759231835091,-152.0,0.00018846,3]
[388523320,1759231835101,-150.0,0.00018885,2]
[388523321,1759231835110,-1320.7,0.00018888,2]
[388523322,1759231835120,-500.0,0.0001889,2]
[388523323,1759231835131,-150.0,0.0001889,2]
[388523324,1759231835141,-500.0,0.0001889,2]
[388523325,1759231835152,-500.0,0.0001889,2]
[388523326,1759231835161,-150.0,0.0001889,2]
[388523327,1759231835171,-150.0,0.0001889,2]
[388523328,1759231835182,-500.0,0.0001889,2]
[388523329,1759231835192,-150.0,0.0001889,2]
[388523330,1759231835201,-150.0,0.0001889,2]
[388523331,1759231835210,-150.0,0.0001889,2]
[388523332,1759231835220,-500.0,0.0001889,2]
[388523333,1759231835229,-500.0,0.0001889,2]
[388523334,1759231835238,-5888.0,0.0001889,2]
[388523335,1759231835248,-5449.76,0.000189,2]
[388523336,1759231835258,-5449.76,0.000189,2]
[388523337,1759231835267,-195.0,0.00018904,2]
[388523338,1759231835277,-161.87561527,0.00018908,2]
[388523339,1759231835287,-300.0,0.00018918,2]
[388523340,1759231835297,-2295.64517461,0.00018921,2]
[388523341,1759231835307,-6281.11849302,0.00018931,2]
[388523342,1759231835318,-150.0,0.00018931,2]
[388523343,1759231835330,-168.0,0.00018987,2]
[388523344,1759231835340,-163.67897412,0.00018988,2]
[388523345,1759231835350,-291.67471157,0.00018988,2]
[388523346,1759231835360,-154.77115583,0.00018988,2]
[388523347,1759231835370,-322.6107,0.00018988,2]
[388523348,1759231835380,-151.0,0.00018997,2]
[388523349,1759231835390,-150.0,0.00018999,2]
[388523350,1759231835400,-150.0,0.00018999,2]
[388523351,1759231835410,-464.0,0.00018999,2]
[388523352,1759231835420,-150.0,0.00018999,2]
[388523353,1759231835430,-150.0,0.00018999,2]
[388523354,1759231835441,-158.72472568,0.00018999,2]
[388523355,1759231835450,-150.0,0.00018999,2]
[388523356,1759231835460,-500.0,0.00018999,2]
[388523357,1759231835471,-1714.0,0.00018999,2]
[388523358,1759231835482,-500.0,0.00018999,2]
[388523359,1759231835492,-150.0,0.00018999,2]
[388523360,1759231835502,-151.37212748,0.00018999,2]
[388523361,1759231835513,-500.0,0.00018999,2]
[388523362,1759231835523,-500.0,0.00018999,2]
[388523363,1759231835532,-150.0,0.00018999,2]
[388523364,1759231835542,-150.0,0.00018999,2]
[388523365,1759231835552,-1191.0,0.00018999,2]
[388523366,1759231835563,-150.0,0.00018999,2]
[388523367,1759231835573,-500.0,0.00018999,2]
[388523368,1759231835583,-150.65674976,0.00018999,2]
[388523369,1759231835593,-150.0,0.00018999,2]
[388523370,1759231835603,-5449.76,0.00019,2]
[388523371,1759231835612,-1025.13658835,0.00019,2]
[388523372,1759231835627,-4424.62341165,0.00019,2]
[388523373,1759231835636,-5164.77302233,0.00019,2]
[388523386,1759231838399,-250.525279,0.00017561,2]
[388523387,1759231838412,-3595.76631041,0.00019,2]
[388523388,1759231838425,-40750.444,0.00019,2]
[388523389,1759231838437,-8355.461751,0.00019,2]
[388523390,1759231838448,-32271.79439193,0.00019,2]
[388523391,1759231838464,-695.2374862,0.00019,2]
[388523394,1759231839948,-1550.0,0.00019,2]
[388523395,1759231840000,-545.58545903,0.00019,2]
[388523396,1759231840012,-22433.835373,0.00019,2]
[388523397,1759231840055,-4525.2,0.00019,2]
[388523398,1759231840067,-1173.3515001,0.00019,2]
[388523399,1759231840119,-63502.59440761,0.00019,2]
[388523400,1759231840169,-6129.47169982,0.00019,2]
[388523699,1759231843875,-498.75525381,0.00017561,2]
[388523700,1759231843888,-1.24474619,0.00017561,2]
[388523701,1759231843897,-400.89696954,0.00017561,2]
[388523702,1759231843907,-930.63,0.00018021,2]
[388523703,1759231843917,-18545.50704841,0.00019,2]
[388523704,1759231843980,-2546.15550478,0.00019,2]
[388523705,1759231844000,-306.34824098,0.00019,2]
[388523706,1759231844029,-152041.66276815,0.00019,2]
[388523707,1759231844060,-835.07489188,0.00019,2]
[388523708,1759231844071,-44825.41369526,0.00019,2]
[388523709,1759231844081,-6281.11849301,0.00019008,2]
[388523710,1759231844091,-250.0,0.00019013,2]
[388523711,1759231844101,-1329.11940291,0.00019013,2]
[388523712,1759231844110,-195.0,0.00019013,2]
[388523713,1759231844119,-500.0,0.00019013,2]
[388523714,1759231844128,-161.87561518,0.00019018,2]
[388523715,1759231844137,-300.0,0.00019031,2]
[388523716,1759231844146,-150.0,0.00019045,2]
[388523717,1759231844155,-168.0,0.00019076,2]
[388523718,1759231844164,-5000.0,0.00019077,2]
[388523719,1759231844173,-492.48730524,0.00019078,2]
[388523720,1759231844182,-159.64688701,0.00019078,2]
[388523721,1759231844192,-6281.11849301,0.00019085,2]
[388523722,1759231844201,-300.0,0.0001909,2]
[388523723,1759231844211,-250.0,0.0001909,2]
[388523724,1759231844220,-2000.0,0.0001909,2]
[388523725,1759231844229,-168.0,0.00019118,2]
[388523726,1759231844239,-161.87561518,0.00019128,2]
[388523727,1759231844249,-168.0,0.00019147,2]
[388523728,1759231844258,-1320.7,0.00019162,2]
[388523729,1759231844268,-6281.11849301,0.00019163,2]
[388523730,1759231844278,-500.0,0.00019164,2]
[388523731,1759231844288,-150.0,0.00019164,2]
[388523732,1759231844298,-500.0,0.00019164,2]
[388523733,1759231844309,-150.0,0.00019164,2]
[388523734,1759231844319,-500.0,0.00019164,2]
[388523735,1759231844329,-150.0,0.00019164,2]
[388523736,1759231844343,-500.0,0.00019164,2]
[388523737,1759231844352,-500.0,0.00019164,2]
[388523738,1759231844362,-150.0,0.00019169,2]
[388523739,1759231844372,-150.0,0.00019169,2]
[388523740,1759231844382,-150.0,0.00019169,2]
[388523741,1759231844391,-150.0,0.00019169,2]
[388523742,1759231844400,-150.0,0.00019169,2]
[388523743,1759231844412,-500.0,0.00019169,2]
[388523744,1759231844422,-150.0,0.00019169,2]
[388523745,1759231844433,-500.0,0.00019169,2]
[388523746,1759231844442,-150.0,0.00019169,2]
[388523747,1759231844451,-150.0,0.00019169,2]
[388523748,1759231844461,-150.0,0.00019169,2]
[388523749,1759231844470,-203.52466395,0.00019169,2]
[388523750,1759231844479,-150.0,0.00019169,2]
[388523751,1759231844488,-150.0,0.00019169,2]
[388523752,1759231844497,-150.0,0.00019169,2]
[388523753,1759231844507,-18919.0,0.0001917,2]
[388523754,1759231844516,-500.0,0.00019173,2]
[388523755,1759231844525,-500.0,0.00019173,2]
[388523756,1759231844536,-500.0,0.00019173,2]
[388523757,1759231844546,-501.52291684,0.00019173,2]
[388523758,1759231844556,-256.81690888,0.00019173,2]
[388523759,1759231844566,-3105.4880366,0.00019176,2]
[388523760,1759231844576,-12715.9022197,0.00019176,2]
[388523761,1759231844585,-14987.9589072,0.00019176,2]
[388523762,1759231844595,-7068.7951825,0.00019176,2]
[388523763,1759231844605,-176.220904,0.00019176,2]
[388523764,1759231844616,-1729.0010661,0.00019176,2]
[388523765,1759231844626,-150.0,0.00019177,2]
[388523766,1759231844635,-21286.81273731,0.00019177,2]
[388523767,1759231844645,-500.0,0.00019177,2]
[388523768,1759231844654,-1000.0,0.00019177,2]
[388523769,1759231844663,-500.0,0.00019178,2]
[388523770,1759231844672,-500.0,0.00019178,2]
[388523771,1759231844682,-500.0,0.00019178,2]
[388523772,1759231844691,-500.0,0.00019178,2]
[388523773,1759231844700,-500.0,0.00019178,2]
[388523774,1759231844711,-500.0,0.00019178,2]
[388523775,1759231844720,-500.0,0.00019178,2]
[388523776,1759231844731,-500.0,0.00019178,2]
[388523777,1759231844740,-500.0,0.00019178,2]
[388523778,1759231844749,-500.0,0.00019178,2]
[388523779,1759231844759,-500.0,0.00019178,2]
[388523780,1759231844768,-500.0,0.00019178,2]
[388523781,1759231844778,-500.0,0.00019178,2]
[388523782,1759231844788,-500.0,0.00019178,2]
[388523783,1759231844798,-500.0,0.00019178,2]
[388523784,1759231844808,-500.0,0.00019178,2]
[388523785,1759231844818,-500.0,0.00019178,2]
[388523786,1759231844827,-500.0,0.00019178,2]
[388523787,1759231844837,-500.0,0.00019178,2]
[388523788,1759231844846,-500.0,0.00019178,2]
[388523789,1759231844856,-500.0,0.00019178,2]
[388523790,1759231844865,-500.0,0.00019178,2]
[388523791,1759231844875,-500.0,0.00019178,2]
[388523792,1759231844885,-500.0,0.00019178,2]
[388523793,1759231844895,-500.0,0.00019178,2]
[388523794,1759231844905,-500.0,0.00019178,2]
[388523795,1759231844915,-500.0,0.00019178,2]
[388523796,1759231844924,-1034.97,0.00019178,2]
[388523797,1759231844934,-500.0,0.00019178,2]
[388523798,1759231844943,-500.0,0.00019178,2]
[388523799,1759231844952,-500.0,0.00019178,2]
[388523800,1759231844961,-500.0,0.00019178,2]
[388523801,1759231844971,-500.0,0.00019178,2]
[388523802,1759231844980,-536.41,0.00019178,2]
[388523803,1759231844989,-500.0,0.00019178,2]
[388523804,1759231844998,-500.0,0.00019178,2]
[388523805,1759231845009,-500.0,0.00019178,2]
[388523806,1759231845019,-300.0,0.00019178,2]
[388523807,1759231845029,-300.0,0.00019178,2]
[388523808,1759231845039,-500.0,0.00019178,2]
[388523809,1759231845049,-500.0,0.00019178,2]
[388523810,1759231845059,-500.0,0.00019178,2]
[388523811,1759231845068,-500.0,0.00019178,2]
[388523812,1759231845078,-500.0,0.00019178,2]
[388523813,1759231845094,-500.0,0.00019178,2]
[388523814,1759231845103,-500.0,0.00019178,2]
[388523815,1759231845112,-500.0,0.00019178,2]
[388523816,1759231845121,-500.0,0.00019178,2]
[388523817,1759231845131,-500.0,0.00019178,2]
[388523818,1759231845140,-500.0,0.00019178,2]